fUST/lending_fUST_20240820
["ID","MTS","AMOUNT","RATE_DAILY","PERIOD"]
[335369686,1724164251321,-500.0,0.00016712,2]
[335369687,1724164251331,-500.0,0.00016712,2]
[335369688,1724164251343,-151.0,0.00016712,2]
[335369689,1724164251353,-500.0,0.00016712,2]
[335369690,1724164251364,-500.0,0.00016712,2]
[335369691,1724164251374,-500.0,0.00016712,2]
[335369692,1724164251384,-500.0,0.00016712,2]
[335369693,1724164251394,-500.0,0.00016712,2]
[335369694,1724164251407,-500.0,0.00016712,2]
[335369695,1724164251417,-151.0,0.00016712,2]
[335369696,1724164251427,-500.0,0.00016712,2]
[335369697,1724164251436,-353.01628623,0.00016712,2]
[335369698,1724164251446,-446.69391484,0.00016712,2]
[335369699,1724164251456,-500.0,0.00016712,2]
[335369700,1724164251466,-500.0,0.00016712,2]
[335369701,1724164251475,-151.0,0.00016712,2]
[335369702,1724164251485,-500.0,0.00016712,2]
[335369703,1724164251495,-252.49527329,0.00016712,2]
[335369704,1724164251504,-478.46707984,0.00016712,2]
[335369705,1724164251514,-500.0,0.00016712,2]
[335369706,1724164251523,-500.0,0.00016712,2]
[335369707,1724164251534,-1040.91,0.00016712,2]
[335369708,1724164251544,-943.07,0.00016712,2]
[335369709,1724164251553,-151.0,0.00016712,2]
[335369710,1724164251563,-500.0,0.00016712,2]
[335369711,1724164251588,-624.73401306,0.00016712,2]
[335369712,1724164251598,-506.23259312,0.00016712,2]
[335369713,1724164251607,-500.0,0.00016712,2]
[335369714,1724164251617,-500.0,0.00016712,2]
[335369715,1724164251628,-511.64201548,0.00016712,2]
[335369716,1724164251637,-500.0,0.00016712,2]
[335369717,1724164251647,-500.0,0.00016712,2]
[335369718,1724164251656,-500.0,0.00016712,2]
[335369719,1724164251666,-500.0,0.00016712,2]
[335369720,1724164251676,-500.0,0.00016712,2]
[335369721,1724164251686,-500.0,0.00016712,2]
[335369722,1724164251695,-483.43006335,0.00016712,2]
[335369723,1724164251705,-500.0,0.00016712,2]
[335369724,1724164251715,-500.0,0.00016712,2]
[335369725,1724164251724,-505.34351822,0.00016712,2]
[335369726,1724164251734,-500.0,0.00016712,2]
[335369727,1724164251744,-500.0,0.00016712,2]
[335369728,1724164251753,-500.0,0.00016712,2]
[335369729,1724164251763,-151.0,0.00016712,2]
[335369730,1724164251772,-500.0,0.00016712,2]
[335369731,1724164251782,-500.0,0.00016712,2]
[335369732,1724164251792,-500.0,0.00016712,2]
[335369733,1724164251802,-507.26650594,0.00016712,2]
[335369734,1724164251811,-500.0,0.00016712,2]
[335369735,1724164251821,-505.1901417,0.00016712,2]
[335369736,1724164251831,-500.0,0.00016712,2]
[335369737,1724164251840,-500.0,0.00016712,2]
[335369738,1724164251850,-500.85401284,0.00016712,2]
[335369739,1724164251860,-258.54224197,0.00016712,2]
[335369740,1724164251870,-500.0,0.00016712,2]
[335369741,1724164251880,-500.0,0.00016712,2]
[335369742,1724164251890,-500.0,0.00016712,2]
[335369743,1724164251900,-500.0,0.00016712,2]
[335369744,1724164251909,-151.0,0.00016712,2]
[335369745,1724164251919,-511.36324838,0.00016712,2]
[335369746,1724164251929,-500.0,0.00016712,2]
[335369747,1724164251938,-500.0,0.00016712,2]
[335369748,1724164251948,-500.0,0.00016712,2]
[335369749,1724164251958,-500.0,0.00016712,2]
[335369750,1724164251968,-500.0,0.00016712,2]
[335369751,1724164251978,-503.67518267,0.00016712,2]
[335369752,1724164251988,-151.0,0.00016712,2]
[335369753,1724164251997,-500.0,0.00016712,2]
[335369754,1724164252006,-501.59760848,0.00016712,2]
[335369755,1724164252017,-500.0,0.00016712,2]
[335369756,1724164252026,-539.07605786,0.00016712,2]
[335369757,1724164252036,-500.0,0.00016712,2]
[335369758,1724164252045,-500.0,0.00016712,2]
[335369759,1724164252056,-500.0,0.00016712,2]
[335369760,1724164252065,-151.0,0.00016712,2]
[335369761,1724164252091,-151.0,0.00016712,2]
[335369762,1724164252101,-500.0,0.00016712,2]
[335369763,1724164252110,-504.5727443,0.00016712,2]
[335369764,1724164252120,-546.48982089,0.00016712,2]
[335369765,1724164252131,-500.0,0.00016712,2]
[335369766,1724164252142,-2614.19,0.00016712,2]
[335369767,1724164252152,-498.86302463,0.00016712,2]
[335369768,1724164252162,-500.0,0.00016712,2]
[335369769,1724164252172,-419.05684619,0.00016712,2]
[335369770,1724164252183,-487.50848374,0.00016712,2]
[335369771,1724164252192,-500.54378537,0.00016712,2]
[335369772,1724164252202,-500.0,0.00016712,2]
[335369773,1724164252211,-399.86996551,0.00016712,2]
[335369774,1724164252221,-513.38270038,0.00016712,2]
[335369775,1724164252234,-500.0,0.00016712,2]
[335369776,1724164252244,-500.0,0.00016712,2]
[335369777,1724164252254,-500.0,0.00016712,2]
[335369778,1724164252264,-500.0,0.00016712,2]
[335369779,1724164252273,-500.0,0.00016712,2]
[335369780,1724164252283,-500.0,0.00016712,2]
[335369781,1724164252293,-500.0,0.00016712,2]
[335369782,1724164252303,-500.0,0.00016712,2]
[335369783,1724164252312,-602.86,0.00016712,2]
[335369784,1724164252322,-389.51866418,0.00016712,2]
[335369785,1724164252332,-500.0,0.00016712,2]
[335369786,1724164252343,-502.35873928,0.00016712,2]
[335369787,1724164252353,-500.0,0.00016712,2]
[335369788,1724164252364,-500.0,0.00016712,2]
[335369789,1724164252376,-537.96894705,0.00016712,2]
[335369790,1724164252387,-500.0,0.00016712,2]
[335369791,1724164252397,-500.0,0.00016712,2]
[335369792,1724164252408,-500.0,0.00016712,2]
[335369793,1724164252420,-504.32658863,0.00016712,2]
[335369794,1724164252432,-273.89970954,0.00016712,2]
[335369795,1724164252443,-500.0,0.00016712,2]
[335369796,1724164252454,-500.0,0.00016712,2]
[335369797,1724164252465,-502.6975238,0.00016712,2]
[335369798,1724164252476,-386.28680511,0.00016712,2]
[335369799,1724164252486,-500.0,0.00016712,2]
[335369800,1724164252496,-500.0,0.00016712,2]
[335369801,1724164252508,-500.0,0.00016712,2]
[335369802,1724164252520,-500.0,0.00016712,2]
[335369803,1724164252531,-500.0,0.00016712,2]
[335369804,1724164252541,-597.73726369,0.00016712,2]
[335369805,1724164252554,-500.0,0.00016712,2]
[335369806,1724164252565,-500.0,0.00016712,2]
[335369807,1724164252577,-500.0,0.00016712,2]
[335369808,1724164252594,-500.0,0.00016712,2]
[335369809,1724164252704,-500.0,0.00016712,2]
[335369810,1724164252714,-500.0,0.00016712,2]
[335369811,1724164252723,-504.07005618,0.00016712,2]
[335369812,1724164252733,-500.0,0.00016712,2]
[335369813,1724164252742,-500.44561053,0.00016712,2]
[335369814,1724164252753,-500.0,0.00016712,2]
[335369815,1724164252762,-4700.84,0.00016712,2]
[335369816,1724164252772,-500.0,0.00016712,2]
[335369817,1724164252780,-500.0,0.00016712,2]
[335369818,1724164252791,-500.0,0.00016712,2]
[335369819,1724164252801,-603.72,0.00016712,2]
[335369820,1724164252812,-500.0,0.00016712,2]
[335369821,1724164252825,-500.0,0.00016712,2]
[335369822,1724164252835,-500.0,0.00016712,2]
[335369823,1724164252857,-500.0,0.00016712,2]
[335369824,1724164252866,-500.0,0.00016712,2]
[335369825,1724164252875,-500.0,0.00016712,2]
[335369826,1724164252885,-780.17,0.00016712,2]
[335369827,1724164252894,-292.84703741,0.00016712,2]
[335369828,1724164252903,-502.76661967,0.00016712,2]
[335369829,1724164252912,-504.18904369,0.00016712,2]
[335369830,1724164252921,-502.59095076,0.00016712,2]
[335369831,1724164252930,-554.43998564,0.00016712,2]
[335369832,1724164252939,-515.50998984,0.00016712,2]
[335369833,1724164252949,-500.0,0.00016712,2]
[335369834,1724164252958,-500.0,0.00016712,2]
[335369835,1724164252967,-500.0,0.00016712,2]
[335369836,1724164252976,-501.55091637,0.00016712,2]
[335369837,1724164252986,-638.6,0.00016853,2]
[335369838,1724164252995,-226.7,0.00016853,2]
[335369839,1724164253005,-500.0,0.00016985,2]
[335369840,1724164253016,-500.0,0.00016986,2]
[335369841,1724164253027,-376.7327495,0.00016986,2]
[335369842,1724164253037,-500.0,0.00016986,2]
[335369843,1724164253048,-500.0,0.00016986,2]
[335369844,1724164253058,-500.0,0.00016986,2]
[335369845,1724164253069,-500.0,0.00016986,2]
[335369846,1724164253079,-504.46954326,0.00016986,2]
[335369847,1724164253099,-500.0,0.00016986,2]
[335369848,1724164253109,-500.67244167,0.00016986,2]
[335369849,1724164253119,-500.0,0.00016986,2]
[335369850,1724164253129,-500.0,0.00016986,2]
[335369851,1724164253139,-500.0,0.00016986,2]
[335369852,1724164253150,-500.0,0.00016986,2]
[335369853,1724164253159,-500.0,0.00016986,2]
[335369854,1724164253169,-500.0,0.00016986,2]
[335369855,1724164253179,-503.96616619,0.00016986,2]
[335369856,1724164253188,-500.0,0.00016986,2]
[335369857,1724164253198,-500.0,0.00016986,2]
[335369858,1724164253210,-500.0,0.00016986,2]
[335369859,1724164253221,-500.0,0.00016986,2]
[335369860,1724164253235,-241.74703384,0.00016986,2]
[335369861,1724164253245,-500.0,0.00016986,2]
[335369862,1724164253254,-500.0,0.00016986,2]
[335369863,1724164253265,-519.16067318,0.00016986,2]
[335369864,1724164253276,-476.19179284,0.00016986,2]
[335369865,1724164253286,-500.0,0.00016986,2]
[335369866,1724164253295,-503.73624201,0.00016986,2]
[335369867,1724164253304,-415.8271817,0.00016986,2]
[335369868,1724164253313,-500.0,0.00016986,2]
[335369869,1724164253323,-500.0,0.00016986,2]
[335369870,1724164253332,-503.65840055,0.00016986,2]
[335369871,1724164253353,-472.77511493,0.00016986,2]
[335369872,1724164253363,-500.0,0.00016986,2]
[335369873,1724164253375,-576.62884116,0.00016986,2]
[335369874,1724164253387,-500.0,0.00016986,2]
[335369875,1724164253397,-500.0,0.00016986,2]
[335369876,1724164253406,-500.0,0.00016986,2]
[335369877,1724164253416,-500.0,0.00016986,2]
[335369878,1724164253426,-2000.0,0.00016986,2]
[335369879,1724164253435,-500.0,0.00016986,2]
[335369880,1724164253445,-500.0,0.00016986,2]
[335369881,1724164253454,-500.0,0.00016986,2]
[335369882,1724164253463,-500.0,0.00016986,2]
[335369883,1724164253476,-500.0,0.00016986,2]
[335369884,1724164253487,-500.0,0.00016986,2]
[335369885,1724164253498,-500.0,0.00016986,2]
[335369886,1724164253509,-200.0,0.00016986,2]
[335369887,1724164253520,-511.97848063,0.00016986,2]
[335369888,1724164253530,-500.0,0.00016986,2]
[335369889,1724164253541,-695.6,0.00016986,2]
[335369890,1724164253552,-509.94578498,0.00016986,2]
[335369891,1724164253562,-500.0,0.00016986,2]
[335369892,1724164253572,-507.29814769,0.00016986,2]
[335369893,1724164253582,-500.0,0.00016986,2]
[335369894,1724164253602,-500.0,0.00016986,2]
[335369895,1724164253612,-500.0,0.00016986,2]
[335369896,1724164253621,-500.0,0.00016986,2]
[335369897,1724164253630,-577.199099,0.00016986,2]
[335369898,1724164253639,-500.0,0.00016986,2]
[335369899,1724164253647,-500.0,0.00016986,2]
[335369900,1724164253656,-348.0316953,0.00016986,2]
[335369901,1724164253665,-546.63,0.00016986,2]
[335369902,1724164253674,-500.0,0.00016986,2]
[335369903,1724164253683,-500.0,0.00016986,2]
[335369904,1724164253693,-500.0,0.00016986,2]
[335369905,1724164253702,-500.0,0.00016986,2]
[335369906,1724164253711,-500.0,0.00016986,2]
[335369907,1724164253721,-500.0,0.00016986,2]
[335369908,1724164253730,-500.0,0.00016986,2]
[335369909,1724164253739,-500.0,0.00016986,2]
[335369910,1724164253748,-500.0,0.00016986,2]
[335369911,1724164253757,-504.54735381,0.00016986,2]
[335369912,1724164253766,-504.44859994,0.00016986,2]
[335369913,1724164253776,-500.0,0.00016986,2]
[335369914,1724164253785,-500.0,0.00016986,2]
[335369915,1724164253794,-500.0,0.00016986,2]
[335369916,1724164253803,-500.0,0.00016986,2]
[335369917,1724164253812,-506.59191739,0.00016986,2]
[335369918,1724164253822,-436.45933866,0.00016986,2]
[335369919,1724164253831,-500.0,0.00016986,2]
[335369920,1724164253852,-500.0,0.00016986,2]
[335369921,1724164253861,-500.0,0.00016986,2]
[335369922,1724164253870,-500.0,0.00016986,2]
[335369923,1724164253879,-732.4,0.00016986,2]
[335369924,1724164253888,-500.0,0.00016986,2]
[335369925,1724164253898,-507.17862359,0.00016986,2]
[335369926,1724164253907,-500.0,0.00016986,2]
[335369927,1724164253916,-500.0,0.00016986,2]
[335369928,1724164253925,-500.0,0.00016986,2]
[335369929,1724164253936,-500.0,0.00016986,2]
[335369930,1724164253946,-460.07984016,0.00016986,2]
[335369931,1724164253955,-500.0,0.00016986,2]
[335369932,1724164253965,-500.0,0.00016986,2]
[335369933,1724164253974,-500.0,0.00016986,2]
[335369934,1724164253983,-500.0,0.00016986,2]
[335369935,1724164253993,-500.0,0.00016986,2]
[335369936,1724164254002,-500.0,0.00016986,2]
[335369937,1724164254011,-151.0,0.00016986,2]
[335369938,1724164254021,-151.0,0.00016986,2]
[335369939,1724164254031,-167.290911,0.00016986,2]
[335369940,1724164254043,-500.0,0.00016986,2]
[335369941,1724164254056,-1411.48,0.00016986,2]
[335369942,1724164254066,-500.0,0.00016986,2]
[335369943,1724164254077,-327.88,0.00016986,2]
[335369944,1724164254096,-500.0,0.00016986,2]
[335369945,1724164254109,-500.0,0.00016986,2]
[335369946,1724164254120,-500.0,0.00016986,2]
[335369947,1724164254131,-500.0,0.00016986,2]
[335369948,1724164254141,-500.0,0.00016986,2]
[335369949,1724164254151,-500.0,0.00016986,2]
[335369950,1724164254160,-801.92,0.00016986,2]
[335369951,1724164254170,-500.0,0.00016986,2]
[335369952,1724164254180,-500.0,0.00016986,2]
[335369953,1724164254191,-500.0,0.00016986,2]
[335369954,1724164254203,-500.0,0.00016986,2]
[335369955,1724164254213,-500.0,0.00016986,2]
[335369956,1724164254223,-500.0,0.00016986,2]
[335369957,1724164254238,-500.0,0.00016986,2]
[335369958,1724164254247,-500.0,0.00016986,2]
[335369959,1724164254258,-500.0,0.00016986,2]
[335369960,1724164254269,-500.0,0.00016986,2]
[335369961,1724164254279,-500.0,0.00016986,2]
[335369962,1724164254288,-500.0,0.00016986,2]
[335369963,1724164254298,-500.0,0.00016986,2]
[335369964,1724164254308,-500.0,0.00016986,2]
[335369965,1724164254321,-500.0,0.00016986,2]
[335369966,1724164254331,-500.0,0.00016986,2]
[335369967,1724164254350,-500.0,0.00016986,2]
[335369968,1724164254360,-500.0,0.00016986,2]
[335369969,1724164254370,-500.0,0.00016986,2]
[335369970,1724164254379,-500.0,0.00016986,2]
[335369971,1724164254388,-500.0,0.00016986,2]
[335369972,1724164254398,-500.0,0.00016986,2]
[335369973,1724164254407,-500.0,0.00016986,2]
[335369974,1724164254418,-500.0,0.00016986,2]
[335369975,1724164254428,-500.0,0.00016986,2]
[335369976,1724164254437,-500.0,0.00016986,2]
[335369977,1724164254447,-500.0,0.00016986,2]
[335369978,1724164254458,-500.0,0.00016986,2]
[335369979,1724164254468,-500.0,0.00016986,2]
[335369980,1724164254479,-500.0,0.00016986,2]
[335369981,1724164254490,-555.65409811,0.00016986,2]
[335369982,1724164254500,-500.0,0.00016986,2]
[335369983,1724164254512,-500.0,0.00016986,2]
[335369984,1724164254522,-500.0,0.00016986,2]
[335369985,1724164254533,-500.0,0.00016986,2]
[335369986,1724164254545,-500.0,0.00016986,2]
[335369987,1724164254557,-500.0,0.00016986,2]
[335369988,1724164254567,-500.0,0.00016986,2]
[335369989,1724164254578,-500.03166675,0.00016986,2]
[335369990,1724164254588,-1000.0,0.00016986,2]
[335369991,1724164254597,-500.0,0.00016986,2]
[335369992,1724164254607,-176.55645309,0.00016986,2]
[335369993,1724164254616,-554.10358249,0.00016986,2]
[335369994,1724164254625,-500.0,0.00016986,2]
[335369995,1724164254635,-500.0,0.00016986,2]
[335369996,1724164254645,-500.0,0.00016986,2]
[335369997,1724164254654,-506.29955647,0.00016986,2]
[335369998,1724164254664,-500.0,0.00016986,2]
[335369999,1724164254673,-500.0,0.00016986,2]
[335370000,1724164254682,-509.38497931,0.00016986,2]
[335370001,1724164254691,-500.0,0.00016986,2]
[335370002,1724164254701,-1692.72,0.00016986,2]
[335370003,1724164254710,-500.0,0.00016986,2]
[335370004,1724164254719,-500.0,0.00016986,2]
[335370005,1724164254729,-500.0,0.00016986,2]
[335370006,1724164254738,-151.0,0.00016986,2]
[335370007,1724164254748,-500.0,0.00016986,2]
[335370008,1724164254757,-500.0,0.00016986,2]
[335370009,1724164254767,-500.0,0.00016986,2]
[335370010,1724164254777,-500.0,0.00016986,2]
[335370011,1724164254787,-500.0,0.00016986,2]
[335370012,1724164254796,-500.0,0.00016986,2]
[335370013,1724164254805,-500.0,0.00016986,2]
[335370014,1724164254815,-500.0,0.00016986,2]
[335370015,1724164254824,-500.0,0.00016986,2]
[335370016,1724164254833,-500.0,0.00016986,2]
[335370017,1724164254847,-500.0,0.00016986,2]
[335370018,1724164254856,-1117.96,0.00016986,2]
[335370019,1724164254868,-500.0,0.00016986,2]
[335370020,1724164254878,-871.42,0.00016986,2]
[335370021,1724164254887,-500.0,0.00016986,2]
[335370022,1724164254896,-151.0,0.00016986,2]
[335370023,1724164254906,-500.0,0.00016986,2]
[335370024,1724164254915,-500.0,0.00016986,2]
[335370025,1724164254925,-500.0,0.00016986,2]
[335370026,1724164254934,-500.0,0.00016986,2]
[335370027,1724164254943,-500.0,0.00016986,2]
[335370028,1724164254953,-903.72,0.00016986,2]
[335370029,1724164254963,-151.0,0.00016986,2]
[335370030,1724164254975,-151.0,0.00016986,2]
[335370031,1724164254985,-500.0,0.00016986,2]
[335370032,1724164254996,-500.0,0.00016986,2]
[335370033,1724164255007,-500.0,0.00016986,2]
[335370034,1724164255018,-500.0,0.00016986,2]
[335370035,1724164255028,-151.0,0.00016986,2]
[335370036,1724164255038,-500.0,0.00016986,2]
[335370037,1724164255049,-500.0,0.00016986,2]
[335370038,1724164255060,-500.0,0.00016986,2]
[335370039,1724164255070,-1595.9,0.00016986,2]
[335370040,1724164255080,-500.0,0.00016986,2]
[335370041,1724164255095,-503.28137629,0.00016986,2]
[335370042,1724164255108,-500.0,0.00016986,2]
[335370043,1724164255119,-500.0,0.00016986,2]
[335370044,1724164255129,-500.0,0.00016986,2]
[335370045,1724164255139,-500.0,0.00016986,2]
[335370046,1724164255149,-500.0,0.00016986,2]
[335370047,1724164255158,-500.0,0.00016986,2]
[335370048,1724164255170,-500.0,0.00016986,2]
[335370049,1724164255181,-500.0,0.00016986,2]
[335370050,1724164255191,-500.0,0.00016986,2]
[335370051,1724164255201,-500.0,0.00016986,2]
[335370052,1724164255210,-500.0,0.00016986,2]
[335370053,1724164255219,-500.0,0.00016986,2]
[335370054,1724164255230,-500.0,0.00016986,2]
[335370055,1724164255241,-500.0,0.00016986,2]
[335370056,1724164255250,-500.0,0.00016986,2]
[335370057,1724164255260,-500.0,0.00016986,2]
[335370058,1724164255270,-588.09268531,0.00016986,2]
[335370059,1724164255279,-500.0,0.00016986,2]
[335370060,1724164255289,-412.72989913,0.00016986,2]
[335370061,1724164255403,-1040.91,0.00016986,2]
[335370062,1724164255413,-943.07,0.00016986,2]
[335370063,1724164255423,-500.0,0.00016986,2]
[335370064,1724164255433,-500.0,0.00016986,2]
[335370065,1724164255442,-178.39286826,0.00016986,2]
[335370066,1724164255452,-500.0,0.00016986,2]
[335370067,1724164255462,-500.0,0.00016986,2]
[335370068,1724164255471,-244.35180494,0.00016986,2]
[335370069,1724164255481,-509.28285814,0.00016986,2]
[335370070,1724164255490,-469.95727674,0.00016986,2]
[335370071,1724164255500,-320.77073065,0.00016986,2]
[335370072,1724164255511,-500.0,0.00016986,2]
[335370073,1724164255523,-500.0,0.00016986,2]
[335370074,1724164255533,-500.0,0.00016986,2]
[335370075,1724164255544,-516.95374631,0.00016986,2]
[335370076,1724164255555,-500.0,0.00016986,2]
[335370077,1724164255565,-500.0,0.00016986,2]
[335370078,1724164255575,-500.0,0.00016986,2]
[335370079,1724164255592,-521.59163149,0.00016986,2]
[335370080,1724164255602,-500.0,0.00016986,2]
[335370081,1724164255612,-605.38962245,0.00016986,2]
[335370082,1724164255621,-503.08874414,0.00016986,2]
[335370083,1724164255631,-502.80649111,0.00016986,2]
[335370084,1724164255643,-500.0,0.00016986,2]
[335370085,1724164255653,-505.17119022,0.00016986,2]
[335370086,1724164255664,-500.0,0.00016986,2]
[335370087,1724164255676,-500.0,0.00016986,2]
[335370088,1724164255686,-448.68916869,0.00016986,2]
[335370089,1724164255696,-195.62524131,0.00016986,2]
[335370090,1724164255706,-500.0,0.00016986,2]
[335370091,1724164255716,-500.95705276,0.00016986,2]
[335370092,1724164255727,-500.0,0.00016986,2]
[335370093,1724164255738,-500.0,0.00016986,2]
[335370094,1724164255749,-500.0,0.00016986,2]
[335370095,1724164255760,-500.0,0.00016986,2]
[335370096,1724164255770,-500.0,0.00016986,2]
[335370097,1724164255780,-500.0,0.00016986,2]
[335370098,1724164255791,-2614.19,0.00016986,2]
[335370099,1724164255801,-500.0,0.00016986,2]
[335370100,1724164255812,-500.0,0.00016986,2]
[335370101,1724164255823,-545.45805345,0.00016986,2]
[335370102,1724164255838,-237.0707362,0.00016986,2]
[335370103,1724164255848,-500.0,0.00016986,2]
[335370104,1724164255857,-500.0,0.00016986,2]
[335370105,1724164255866,-500.0,0.00016986,2]
[335370106,1724164255876,-500.0,0.00016986,2]
[335370107,1724164255886,-500.0,0.00016986,2]
[335370108,1724164255895,-500.0,0.00016986,2]
[335370109,1724164255907,-602.86,0.00016986,2]
[335370110,1724164255918,-500.0,0.00016986,2]
[335370111,1724164255930,-500.0,0.00016986,2]
[335370112,1724164255940,-500.0,0.00016986,2]
[335370113,1724164255951,-500.0,0.00016986,2]
[335370114,1724164255960,-500.0,0.00016986,2]
[335370115,1724164255970,-500.0,0.00016986,2]
[335370116,1724164255981,-502.74099934,0.00016986,2]
[335370117,1724164255992,-500.0,0.00016986,2]
[335370118,1724164256004,-500.0,0.00016986,2]
[335370119,1724164256015,-500.0,0.00016986,2]
[335370120,1724164256027,-500.0,0.00016986,2]
[335370121,1724164256037,-500.0,0.00016986,2]
[335370122,1724164256049,-500.0,0.00016986,2]
[335370123,1724164256061,-151.0,0.00016986,2]
[335370124,1724164256071,-500.0,0.00016986,2]
[335370125,1724164256081,-500.0,0.00016986,2]
[335370126,1724164256091,-500.0,0.00016986,2]
[335370127,1724164256102,-500.0,0.00016986,2]
[335370128,1724164256112,-500.0,0.00016986,2]
[335370129,1724164256124,-520.75865901,0.00016986,2]
[335370130,1724164256135,-500.0,0.00016986,2]
[335370131,1724164256145,-496.53705127,0.00016986,2]
[335370132,1724164256156,-4700.84,0.00016986,2]
[335370133,1724164256168,-500.0,0.00016986,2]
[335370134,1724164256178,-500.0,0.00016986,2]
[335370135,1724164256188,-500.0,0.00016986,2]
[335370136,1724164256199,-603.72,0.00016986,2]
[335370137,1724164256209,-500.0,0.00016986,2]
[335370138,1724164256221,-500.0,0.00016986,2]
[335370139,1724164256233,-500.0,0.00016986,2]
[335370140,1724164256246,-500.0,0.00016986,2]
[335370141,1724164256256,-501.3110504,0.00016986,2]
[335370142,1724164256267,-500.0,0.00016986,2]
[335370143,1724164256280,-780.17,0.00016986,2]
[335370144,1724164256291,-500.0,0.00016986,2]
[335370145,1724164256303,-500.0,0.00016986,2]
[335370146,1724164256315,-500.0,0.00016986,2]
[335370147,1724164256326,-150.112233,0.00017,2]
[335370148,1724164256336,-1000.0,0.00017,17]
[335370149,1724164256346,-507.64655867,0.00017249,2]
[335370150,1724164256355,-264.55254378,0.0001726,2]
[335370151,1724164256365,-500.0,0.0001726,2]
[335370152,1724164256374,-500.0,0.0001726,2]
[335370153,1724164256383,-500.0,0.0001726,2]
[335370154,1724164256392,-500.0,0.0001726,2]
[335370155,1724164256401,-501.86255384,0.0001726,2]
[335370156,1724164256411,-505.01568702,0.0001726,2]
[335370157,1724164256420,-500.0,0.0001726,2]
[335370158,1724164256429,-500.0,0.0001726,2]
[335370159,1724164256438,-500.0,0.0001726,2]
[335370160,1724164256447,-503.79179135,0.0001726,2]
[335370161,1724164256457,-500.0,0.0001726,2]
[335370162,1724164256466,-541.8987227,0.0001726,2]
[335370163,1724164256475,-388.03666403,0.0001726,2]
[335370164,1724164256485,-500.0,0.0001726,2]
[335370165,1724164256494,-500.0,0.0001726,2]
[335370166,1724164256503,-500.0,0.0001726,2]
[335370167,1724164256513,-500.0,0.0001726,2]
[335370168,1724164256522,-500.0,0.0001726,2]
[335370169,1724164256532,-302.02792004,0.0001726,2]
[335370170,1724164256542,-500.0,0.0001726,2]
[335370171,1724164256551,-505.54129742,0.0001726,2]
[335370172,1724164256560,-516.57011418,0.0001726,2]
[335370173,1724164256570,-500.0,0.0001726,2]
[335370174,1724164256580,-538.4638379,0.0001726,2]
[335370175,1724164256591,-2000.0,0.0001726,2]
[335370176,1724164256600,-433.54811813,0.0001726,2]
[335370177,1724164256610,-571.95315328,0.0001726,2]
[335370178,1724164256619,-500.0,0.0001726,2]
[335370179,1724164256629,-500.0,0.0001726,2]
[335370180,1724164256638,-500.0,0.0001726,2]
[335370181,1724164256648,-502.98749075,0.0001726,2]
[335370182,1724164256657,-500.0,0.0001726,2]
[335370183,1724164256666,-200.0,0.0001726,2]
[335370184,1724164256675,-500.0,0.0001726,2]
[335370185,1724164256685,-695.6,0.0001726,2]